[Event "Early-Titled-Tuesday-Blitz-April-23-2024"]
[Site "Chess.com"]
[Date "2024.04.23"]
[Round "4"]
[White "DumbKing75"]
[Black "GrotBchess"]
[Result "1-0"]
[WhiteElo "2643"]
[BlackElo "2464"]
[TimeControl "180+1"]
[EndTime "8:38:35 PDT"]
[Termination "DumbKing75 won by resignation"]

1. e4 {[%clk 0:03:00.9]} 1... c5 {[%clk 0:02:57.2]} 2. Nf3 {[%clk 0:03:01.3]}
2... e6 {[%clk 0:02:54.7]} 3. d3 {[%clk 0:02:54.7]} 3... Nc6 {[%clk 0:02:51.8]}
4. Nbd2 {[%clk 0:02:55.6]} 4... d6 {[%clk 0:02:50.5]} 5. g3 {[%clk 0:02:56.1]}
5... Nf6 {[%clk 0:02:50.3]} 6. Bg2 {[%clk 0:02:57]} 6... Be7 {[%clk 0:02:50.6]}
7. O-O {[%clk 0:02:57.9]} 7... a6 {[%clk 0:02:48.7]} 8. Re1 {[%clk 0:02:40.6]}
8... Qc7 {[%clk 0:02:47.4]} 9. a4 {[%clk 0:02:38.3]} 9... Rb8 {[%clk 0:02:46.9]}
10. Nf1 {[%clk 0:02:20.3]} 10... b5 {[%clk 0:02:45.7]} 11. axb5 {[%clk
0:02:18.3]} 11... axb5 {[%clk 0:02:46.6]} 12. Bf4 {[%clk 0:02:18.8]} 12... e5
{[%clk 0:02:46.5]} 13. Bg5 {[%clk 0:02:19]} 13... h6 {[%clk 0:02:45.7]} 14. Bxf6
{[%clk 0:02:19.2]} 14... Bxf6 {[%clk 0:02:46.6]} 15. Ne3 {[%clk 0:02:19.9]}
15... Be6 {[%clk 0:02:46.5]} 16. Nd5 {[%clk 0:01:47.4]} 16... Bxd5 {[%clk
0:02:45.6]} 17. exd5 {[%clk 0:01:48.3]} 17... Ne7 {[%clk 0:02:40.4]} 18. Nd2
{[%clk 0:01:47.9]} 18... g6 {[%clk 0:02:31.9]} 19. Ne4 {[%clk 0:01:38.6]} 19...
Bg7 {[%clk 0:02:31.6]} 20. Ra6 {[%clk 0:01:38.3]} 20... Rd8 {[%clk 0:02:30.7]}
21. Qa1 {[%clk 0:01:24.9]} 21... O-O {[%clk 0:02:28.4]} 22. Ra7 {[%clk
0:01:24.9]} 22... Qb6 {[%clk 0:02:08.2]} 23. Rxe7 {[%clk 0:01:23.2]} 23... Ra8
{[%clk 0:02:08.1]} 24. Qd1 {[%clk 0:01:11.8]} 24... Rfd8 {[%clk 0:02:03.5]} 25.
Qg4 {[%clk 0:01:05.7]} 25... Ra2 {[%clk 0:01:53.5]} 26. Rd7 {[%clk 0:00:53]}
26... Rxd7 {[%clk 0:01:52.7]} 27. Qxd7 {[%clk 0:00:53.9]} 27... Bf8 {[%clk
0:01:52.9]} 28. Bh3 {[%clk 0:00:45.1]} 28... Qa5 {[%clk 0:01:35.5]} 29. Rf1
{[%clk 0:00:39.6]} 29... Ra1 {[%clk 0:01:29]} 30. Nf6+ {[%clk 0:00:34]} 30...
Kg7 {[%clk 0:01:27.9]} 31. Ne8+ {[%clk 0:00:34.6]} 31... Kg8 {[%clk 0:01:27.7]}
32. Be6 {[%clk 0:00:34]} 32... Qa7 {[%clk 0:01:07.2]} 33. Qxf7+ {[%clk
0:00:29.6]} 33... Qxf7 {[%clk 0:01:05.4]} 34. Rxa1 {[%clk 0:00:30.5]} 34... Qxe6
{[%clk 0:01:02.6]} 35. dxe6 {[%clk 0:00:31.4]} 1-0

[Event "Early-Titled-Tuesday-Blitz-April-23-2024"]
[Site "Chess.com"]
[Date "2024.04.23"]
[Round "4"]
[White "carokannlover213"]
[Black "whitemirrorninja"]
[Result "1-0"]
[WhiteElo "2792"]
[BlackElo "2450"]
[TimeControl "180+1"]
[EndTime "8:38:35 PDT"]
[Termination "carokannlover213 won by resignation"]

1. e4 {[%clk 0:02:59.4]} 1... c5 {[%clk 0:02:59]} 2. Nf3 {[%clk 0:02:59.3]} 2...
a6 {[%clk 0:02:59.1]} 3. a3 {[%clk 0:02:57.4]} 3... b5 {[%clk 0:02:56.6]} 4. d4
{[%clk 0:02:56.9]} 4... cxd4 {[%clk 0:02:56.8]} 5. Nxd4 {[%clk 0:02:57.8]} 5...
Bb7 {[%clk 0:02:56.4]} 6. Bd3 {[%clk 0:02:56.6]} 6... Nc6 {[%clk 0:02:56]} 7.
Nxc6 {[%clk 0:02:56.9]} 7... Bxc6 {[%clk 0:02:56.9]} 8. O-O {[%clk 0:02:57.3]}
8... g6 {[%clk 0:02:57.4]} 9. Qe2 {[%clk 0:02:57.1]} 9... Bg7 {[%clk 0:02:57.7]}
10. c4 {[%clk 0:02:57.5]} 10... bxc4 {[%clk 0:02:56.7]} 11. Bxc4 {[%clk
0:02:58.4]} 11... Nf6 {[%clk 0:02:50.9]} 12. e5 {[%clk 0:02:56.2]} 12... Nd5
{[%clk 0:02:50.9]} 13. Bxa6 {[%clk 0:02:56]} 13... O-O {[%clk 0:02:47.4]} 14.
Bc4 {[%clk 0:02:52.9]} 14... Qb8 {[%clk 0:02:41.2]} 15. Re1 {[%clk 0:02:48.3]}
15... Rc8 {[%clk 0:02:36.8]} 16. Nc3 {[%clk 0:02:47.4]} 16... Nxc3 {[%clk
0:02:30.4]} 17. bxc3 {[%clk 0:02:48.3]} 17... Ra5 {[%clk 0:02:26.5]} 18. Bf4
{[%clk 0:02:45.6]} 18... Qa7 {[%clk 0:02:16.7]} 19. Be3 {[%clk 0:02:41.8]} 19...
Qc7 {[%clk 0:02:08.3]} 20. Bf4 {[%clk 0:02:37.5]} 20... Qa7 {[%clk 0:02:06.6]}
21. Be3 {[%clk 0:02:35.3]} 21... Qa8 {[%clk 0:02:02]} 22. f4 {[%clk 0:02:23.5]}
22... Rxa3 {[%clk 0:02:01.4]} 23. Rxa3 {[%clk 0:02:09.9]} 23... Qxa3 {[%clk
0:02:02.3]} 24. Bd4 {[%clk 0:02:09.9]} 24... Qa8 {[%clk 0:01:43.7]} 25. f5
{[%clk 0:01:34.4]} 25... gxf5 {[%clk 0:01:33.5]} 26. Bxf7+ {[%clk 0:00:51.9]}
26... Kxf7 {[%clk 0:01:05.6]} 27. e6+ {[%clk 0:00:52]} 27... Kg8 {[%clk
0:01:06.2]} 28. Bxg7 {[%clk 0:00:49.6]} 28... Kxg7 {[%clk 0:01:00.4]} 29. exd7
{[%clk 0:00:49]} 29... Rf8 {[%clk 0:01:00.8]} 30. Qxe7+ {[%clk 0:00:45.3]} 30...
Rf7 {[%clk 0:01:00.8]} 31. Qg5+ {[%clk 0:00:41.5]} 31... Kh8 {[%clk 0:00:55.9]}
32. d8=Q+ {[%clk 0:00:39]} 1-0

[Event "Early-Titled-Tuesday-Blitz-April-23-2024"]
[Site "Chess.com"]
[Date "2024.04.23"]
[Round "4"]
[White "2Coaches1Profile"]
[Black "Valio_M1948"]
[Result "1-0"]
[WhiteElo "2559"]
[BlackElo "2370"]
[TimeControl "180+1"]
[EndTime "8:38:51 PDT"]
[Termination "2Coaches1Profile won by resignation"]

1. d4 {[%clk 0:03:00.5]} 1... b6 {[%clk 0:03:00.9]} 2. e4 {[%clk 0:02:59.7]}
2... Bb7 {[%clk 0:03:01.8]} 3. Bd3 {[%clk 0:02:59.8]} 3... g6 {[%clk 0:03:02.5]}
4. Nf3 {[%clk 0:03:00.2]} 4... Bg7 {[%clk 0:03:03.4]} 5. O-O {[%clk 0:03:00.5]}
5... d6 {[%clk 0:02:56.6]} 6. a4 {[%clk 0:03:00.6]} 6... a6 {[%clk 0:02:55.1]}
7. c4 {[%clk 0:02:59.7]} 7... Nd7 {[%clk 0:02:55.6]} 8. a5 {[%clk 0:02:59.2]}
8... bxa5 {[%clk 0:02:54.9]} 9. Be3 {[%clk 0:02:54.5]} 9... Ngf6 {[%clk
0:02:53.3]} 10. Nc3 {[%clk 0:02:53.9]} 10... c5 {[%clk 0:02:51.4]} 11. dxc5
{[%clk 0:02:51.4]} 11... Nxc5 {[%clk 0:02:51.2]} 12. e5 {[%clk 0:02:09.3]} 12...
Ng4 {[%clk 0:02:38.7]} 13. Bxc5 {[%clk 0:02:03.8]} 13... dxc5 {[%clk 0:02:36.8]}
14. e6 {[%clk 0:01:55]} 14... fxe6 {[%clk 0:02:03.8]} 15. Qa4+ {[%clk
0:01:28.2]} 15... Kf8 {[%clk 0:01:38.5]} 16. Be4 {[%clk 0:01:24.2]} 16... Rb8
{[%clk 0:01:22.5]} 17. Rfd1 {[%clk 0:01:21.3]} 17... Qe8 {[%clk 0:01:21.7]} 18.
Qxa5 {[%clk 0:01:08.1]} 18... Bxe4 {[%clk 0:00:44]} 19. Nxe4 {[%clk 0:01:09]}
19... Bxb2 {[%clk 0:00:44.2]} 20. Rab1 {[%clk 0:01:05.9]} 20... Qc6 {[%clk
0:00:40.7]} 21. Rd8+ {[%clk 0:00:46.7]} 21... Rxd8 {[%clk 0:00:40.4]} 22. Qxd8+
{[%clk 0:00:47.6]} 22... Kf7 {[%clk 0:00:23.4]} 23. Nfg5+ {[%clk 0:00:36.5]}
23... Kg7 {[%clk 0:00:23.1]} 24. Qxe7+ {[%clk 0:00:36.5]} 24... Kh6 {[%clk
0:00:23.7]} 25. Nf7+ {[%clk 0:00:27.3]} 1-0

[Event "Early-Titled-Tuesday-Blitz-April-23-2024"]
[Site "Chess.com"]
[Date "2024.04.23"]
[Round "4"]
[White "SashaKuzhilniy"]
[Black "shimastream"]
[Result "0-1"]
[WhiteElo "2645"]
[BlackElo "3044"]
[TimeControl "180+1"]
[EndTime "8:38:53 PDT"]
[Termination "shimastream won by resignation"]

1. d4 {[%clk 0:03:00.9]} 1... b6 {[%clk 0:02:59.8]} 2. e4 {[%clk 0:02:58.4]}
2... Bb7 {[%clk 0:02:59.7]} 3. Bd3 {[%clk 0:02:57.5]} 3... e6 {[%clk 0:02:59.8]}
4. Nf3 {[%clk 0:02:54]} 4... c5 {[%clk 0:02:59.5]} 5. d5 {[%clk 0:02:53.4]} 5...
exd5 {[%clk 0:02:59.2]} 6. exd5 {[%clk 0:02:54.3]} 6... Bxd5 {[%clk 0:02:59.5]}
7. Nc3 {[%clk 0:02:54.7]} 7... Be6 {[%clk 0:02:59.6]} 8. O-O {[%clk 0:02:32.8]}
8... Nc6 {[%clk 0:02:59.3]} 9. Re1 {[%clk 0:02:27.9]} 9... Nf6 {[%clk
0:02:55.5]} 10. Bf4 {[%clk 0:02:09.5]} 10... Be7 {[%clk 0:02:55.6]} 11. Nb5
{[%clk 0:01:56.6]} 11... O-O {[%clk 0:02:26.9]} 12. Ng5 {[%clk 0:01:01]} 12...
a6 {[%clk 0:02:07.1]} 13. Nc7 {[%clk 0:00:58.4]} 13... Ra7 {[%clk 0:02:06.4]}
14. Ncxe6 {[%clk 0:00:45.8]} 14... dxe6 {[%clk 0:02:06.6]} 15. Qf3 {[%clk
0:00:44.7]} 15... Nb4 {[%clk 0:02:05]} 16. Rad1 {[%clk 0:00:27.1]} 16... Rd7
{[%clk 0:01:58.2]} 17. Bf1 {[%clk 0:00:20.2]} 17... Nxc2 {[%clk 0:01:53.1]} 18.
Bxa6 {[%clk 0:00:19.7]} 18... Nxe1 {[%clk 0:01:52.4]} 19. Rxe1 {[%clk
0:00:18.4]} 19... Qa8 {[%clk 0:01:49.7]} 20. Qe2 {[%clk 0:00:14.8]} 20... Rfd8
{[%clk 0:01:17.2]} 21. Bb5 {[%clk 0:00:14.6]} 21... Rd4 {[%clk 0:01:15.9]} 22.
Be5 {[%clk 0:00:14.8]} 22... Rd2 {[%clk 0:01:15.2]} 23. Qe3 {[%clk 0:00:12.4]}
23... Rd1 {[%clk 0:01:13]} 24. a4 {[%clk 0:00:11.8]} 24... Qd5 {[%clk
0:01:10.9]} 25. h3 {[%clk 0:00:10.4]} 25... Rxe1+ {[%clk 0:00:58.3]} 26. Qxe1
{[%clk 0:00:11.3]} 26... Qd1 {[%clk 0:00:56.6]} 27. Kf1 {[%clk 0:00:11.6]} 27...
Qb3 {[%clk 0:00:53.6]} 28. Be2 {[%clk 0:00:10.1]} 28... Nd7 {[%clk 0:00:50.6]}
29. Bc3 {[%clk 0:00:09.9]} 29... Bxg5 {[%clk 0:00:50.5]} 0-1

[Event "Early-Titled-Tuesday-Blitz-April-23-2024"]
[Site "Chess.com"]
[Date "2024.04.23"]
[Round "4"]
[White "ChadBiryani"]
[Black "ValentinDragnev"]
[Result "0-1"]
[WhiteElo "2441"]
[BlackElo "2733"]
[TimeControl "180+1"]
[EndTime "8:38:54 PDT"]
[Termination "ValentinDragnev won by resignation"]

1. c4 {[%clk 0:03:00.9]} 1... Nc6 {[%clk 0:02:57.5]} 2. d4 {[%clk 0:02:58.6]}
2... d5 {[%clk 0:02:57.6]} 3. cxd5 {[%clk 0:02:57]} 3... Qxd5 {[%clk 0:02:58.5]}
4. e3 {[%clk 0:02:55.2]} 4... e5 {[%clk 0:02:58.9]} 5. Nc3 {[%clk 0:02:55.2]}
5... Bb4 {[%clk 0:02:59.4]} 6. Nf3 {[%clk 0:02:51.8]} 6... exd4 {[%clk
0:02:55.3]} 7. exd4 {[%clk 0:02:50.5]} 7... Bg4 {[%clk 0:02:54.6]} 8. Be2 {[%clk
0:02:51]} 8... Bxf3 {[%clk 0:02:52.6]} 9. Bxf3 {[%clk 0:02:51.1]} 9... Qc4
{[%clk 0:02:53.3]} 10. Be3 {[%clk 0:02:13.4]} 10... Bxc3+ {[%clk 0:02:50.7]} 11.
bxc3 {[%clk 0:02:13.5]} 11... Qxc3+ {[%clk 0:02:43.3]} 12. Kf1 {[%clk
0:02:13.8]} 12... Nge7 {[%clk 0:02:31]} 13. Rc1 {[%clk 0:02:10.9]} 13... Qa5
{[%clk 0:02:30.5]} 14. Rc5 {[%clk 0:01:35.1]} 14... Qxa2 {[%clk 0:02:28]} 15. h4
{[%clk 0:01:28.5]} 15... O-O {[%clk 0:02:23.3]} 16. h5 {[%clk 0:01:28.7]} 16...
h6 {[%clk 0:02:14.4]} 17. Qd3 {[%clk 0:01:12.6]} 17... Rad8 {[%clk 0:02:10.6]}
18. Qe4 {[%clk 0:01:10.5]} 18... Qb2 {[%clk 0:01:19.6]} 19. Rh4 {[%clk
0:00:40.1]} 19... Rd6 {[%clk 0:01:09.9]} 20. Kg1 {[%clk 0:00:26.9]} 20... Rfd8
{[%clk 0:01:04]} 21. Kh2 {[%clk 0:00:15.8]} 21... Nd5 {[%clk 0:00:58.4]} 22. Bc1
{[%clk 0:00:12.8]} 22... Qxf2 {[%clk 0:00:56.1]} 23. Qg4 {[%clk 0:00:09.9]}
23... Nf6 {[%clk 0:00:53.1]} 24. Qh3 {[%clk 0:00:03.8]} 24... Rxd4 {[%clk
0:00:50.4]} 25. Bf4 {[%clk 0:00:03.5]} 25... Rxf4 {[%clk 0:00:49.5]} 26. Rxf4
{[%clk 0:00:04.4]} 26... Qxc5 {[%clk 0:00:49.8]} 0-1

[Event "Early-Titled-Tuesday-Blitz-April-23-2024"]
[Site "Chess.com"]
[Date "2024.04.23"]
[Round "4"]
[White "Alenzer"]
[Black "patzer-reloaded"]
[Result "0-1"]
[WhiteElo "2217"]
[BlackElo "2432"]
[TimeControl "180+1"]
[EndTime "8:38:54 PDT"]
[Termination "patzer-reloaded won by resignation"]

1. e4 {[%clk 0:02:56.9]} 1... d6 {[%clk 0:02:57.8]} 2. d4 {[%clk 0:02:54.9]}
2... Nf6 {[%clk 0:02:57.7]} 3. Nc3 {[%clk 0:02:51.6]} 3... g6 {[%clk 0:02:57.6]}
4. Bg5 {[%clk 0:02:52]} 4... Nbd7 {[%clk 0:02:55.3]} 5. Bc4 {[%clk 0:02:50]}
5... c6 {[%clk 0:02:51.4]} 6. Nf3 {[%clk 0:02:43]} 6... b5 {[%clk 0:02:35.4]} 7.
Bd3 {[%clk 0:02:30.6]} 7... Qc7 {[%clk 0:02:29.3]} 8. Qd2 {[%clk 0:02:17.2]}
8... a6 {[%clk 0:02:17.2]} 9. h4 {[%clk 0:02:13.9]} 9... h6 {[%clk 0:02:11.6]}
10. Be3 {[%clk 0:02:11.4]} 10... Ng4 {[%clk 0:02:09.5]} 11. O-O-O {[%clk
0:02:04.5]} 11... Nxe3 {[%clk 0:01:55.5]} 12. fxe3 {[%clk 0:02:02.5]} 12... Bg7
{[%clk 0:01:53.6]} 13. h5 {[%clk 0:01:45.4]} 13... g5 {[%clk 0:01:51.7]} 14. g4
{[%clk 0:01:26.1]} 14... Nb6 {[%clk 0:01:49.1]} 15. Kb1 {[%clk 0:01:20.8]} 15...
Bxg4 {[%clk 0:01:47.4]} 16. Rdf1 {[%clk 0:01:13.9]} 16... c5 {[%clk 0:01:27.8]}
17. Be2 {[%clk 0:01:10.4]} 17... Bxf3 {[%clk 0:01:05.8]} 18. Bxf3 {[%clk
0:01:06.1]} 18... Nc4 {[%clk 0:00:50.1]} 19. Qf2 {[%clk 0:01:06]} 19... e6
{[%clk 0:00:47.9]} 20. e5 {[%clk 0:00:59.5]} 20... d5 {[%clk 0:00:46.3]} 21.
dxc5 {[%clk 0:00:59.8]} 21... Rc8 {[%clk 0:00:43.8]} 22. Nxd5 {[%clk 0:00:55]}
22... exd5 {[%clk 0:00:41.6]} 23. Bxd5 {[%clk 0:00:55.9]} 23... O-O {[%clk
0:00:39.7]} 24. e6 {[%clk 0:00:56.1]} 24... fxe6 {[%clk 0:00:28]} 25. Bxe6+
{[%clk 0:00:56.4]} 25... Kh8 {[%clk 0:00:27.4]} 26. Qe2 {[%clk 0:00:44.1]} 26...
Qe5 {[%clk 0:00:25.9]} 27. Rxf8+ {[%clk 0:00:40.7]} 27... Rxf8 {[%clk
0:00:25.1]} 0-1

[Event "Early-Titled-Tuesday-Blitz-April-23-2024"]
[Site "Chess.com"]
[Date "2024.04.23"]
[Round "4"]
[White "JonasEilenberg"]
[Black "Sam_ChessMood"]
[Result "0-1"]
[WhiteElo "2764"]
[BlackElo "2966"]
[TimeControl "180+1"]
[EndTime "8:38:56 PDT"]
[Termination "Sam_ChessMood won by resignation"]

1. d4 {[%clk 0:03:00.9]} 1... Nf6 {[%clk 0:02:58.2]} 2. c4 {[%clk 0:03:01.1]}
2... e6 {[%clk 0:02:57]} 3. Nc3 {[%clk 0:03:01.2]} 3... d5 {[%clk 0:02:57.1]} 4.
Bg5 {[%clk 0:03:00.3]} 4... Bb4 {[%clk 0:02:50.3]} 5. e3 {[%clk 0:03:00.4]} 5...
h6 {[%clk 0:02:48.2]} 6. Bh4 {[%clk 0:03:00.7]} 6... O-O {[%clk 0:02:44.4]} 7.
cxd5 {[%clk 0:02:54.3]} 7... exd5 {[%clk 0:02:43.5]} 8. Bd3 {[%clk 0:02:54.6]}
8... c5 {[%clk 0:02:34.5]} 9. Ne2 {[%clk 0:02:54.4]} 9... Nc6 {[%clk 0:02:33.9]}
10. a3 {[%clk 0:02:51.8]} 10... cxd4 {[%clk 0:02:28.5]} 11. axb4 {[%clk
0:02:45.3]} 11... dxc3 {[%clk 0:02:28.3]} 12. bxc3 {[%clk 0:02:46.2]} 12... Ne5
{[%clk 0:02:18.7]} 13. O-O {[%clk 0:02:46.6]} 13... Qb6 {[%clk 0:02:14.9]} 14.
Nd4 {[%clk 0:02:42.2]} 14... Bd7 {[%clk 0:02:10.1]} 15. Bf5 {[%clk 0:02:30.3]}
15... Rac8 {[%clk 0:02:06]} 16. f4 {[%clk 0:02:05.6]} 16... Nc4 {[%clk
0:01:30.9]} 17. Qd3 {[%clk 0:01:25.3]} 17... Bxf5 {[%clk 0:01:16.2]} 18. Nxf5
{[%clk 0:01:25.1]} 18... Rfe8 {[%clk 0:01:16.4]} 19. Rf3 {[%clk 0:01:23.1]}
19... Ne4 {[%clk 0:00:52.5]} 20. Qxd5 {[%clk 0:01:23.1]} 20... Ncd2 {[%clk
0:00:38.1]} 21. Rh3 {[%clk 0:01:07.5]} 21... Rxc3 {[%clk 0:00:37.3]} 22. Rd1
{[%clk 0:00:55.6]} 22... Qe6 {[%clk 0:00:29.7]} 23. Qb5 {[%clk 0:00:37.6]} 23...
a6 {[%clk 0:00:26.1]} 24. Qa4 {[%clk 0:00:31.1]} 24... b5 {[%clk 0:00:24.7]} 0-1

[Event "Early-Titled-Tuesday-Blitz-April-23-2024"]
[Site "Chess.com"]
[Date "2024.04.23"]
[Round "4"]
[White "Casablanca"]
[Black "AryanTari"]
[Result "0-1"]
[WhiteElo "2630"]
[BlackElo "2943"]
[TimeControl "180+1"]
[EndTime "8:38:57 PDT"]
[Termination "AryanTari won by resignation"]

1. d4 {[%clk 0:03:00.9]} 1... Nf6 {[%clk 0:02:58]} 2. Bg5 {[%clk 0:02:59.9]}
2... Nc6 {[%clk 0:02:53.6]} 3. Nf3 {[%clk 0:02:58.1]} 3... d5 {[%clk 0:02:50.1]}
4. e3 {[%clk 0:02:55.8]} 4... Bf5 {[%clk 0:02:50.2]} 5. c4 {[%clk 0:02:55.4]}
5... Ne4 {[%clk 0:02:47.9]} 6. Bf4 {[%clk 0:02:55.3]} 6... e6 {[%clk 0:02:47.9]}
7. Nc3 {[%clk 0:02:53.6]} 7... Bb4 {[%clk 0:02:46.9]} 8. Rc1 {[%clk 0:02:54.2]}
8... O-O {[%clk 0:02:28.7]} 9. Bd3 {[%clk 0:02:53.2]} 9... dxc4 {[%clk
0:02:19.2]} 10. Bxc4 {[%clk 0:02:51.9]} 10... Nxc3 {[%clk 0:02:19.6]} 11. bxc3
{[%clk 0:02:42.2]} 11... Ba3 {[%clk 0:02:18.9]} 12. O-O {[%clk 0:02:42.7]} 12...
Bxc1 {[%clk 0:02:17.8]} 13. Qxc1 {[%clk 0:02:43.6]} 13... Na5 {[%clk 0:02:15.8]}
14. Be2 {[%clk 0:02:42.6]} 14... b6 {[%clk 0:02:00.3]} 15. Qa3 {[%clk
0:02:41.7]} 15... Be4 {[%clk 0:01:23.8]} 16. Nd2 {[%clk 0:02:33.4]} 16... Bb7
{[%clk 0:01:23.9]} 17. Rd1 {[%clk 0:02:08.6]} 17... c5 {[%clk 0:01:15.9]} 18.
dxc5 {[%clk 0:02:05.1]} 18... Qd5 {[%clk 0:01:16]} 19. Bf3 {[%clk 0:02:04.1]}
19... Qxc5 {[%clk 0:01:15.3]} 20. Qxc5 {[%clk 0:01:39]} 20... bxc5 {[%clk
0:01:15.4]} 21. Bxb7 {[%clk 0:01:39.4]} 21... Nxb7 {[%clk 0:01:15.7]} 22. Nc4
{[%clk 0:01:40.3]} 22... Rfd8 {[%clk 0:01:15]} 23. Rb1 {[%clk 0:01:40.6]} 23...
f6 {[%clk 0:01:07.9]} 24. g4 {[%clk 0:01:24.1]} 24... Rd7 {[%clk 0:01:07.8]} 25.
e4 {[%clk 0:01:17.5]} 25... e5 {[%clk 0:01:03.6]} 26. Be3 {[%clk 0:01:17.2]}
26... Rc8 {[%clk 0:01:01.9]} 27. Kg2 {[%clk 0:01:10.4]} 27... Nd6 {[%clk
0:00:56]} 28. Nd2 {[%clk 0:01:07.3]} 28... Rb7 {[%clk 0:00:53.3]} 29. Rd1 {[%clk
0:01:06.4]} 29... Nb5 {[%clk 0:00:52.7]} 30. Nb1 {[%clk 0:01:05.5]} 30... Rc6
{[%clk 0:00:38.8]} 31. a4 {[%clk 0:01:05.7]} 31... Nd6 {[%clk 0:00:38.7]} 32.
Nd2 {[%clk 0:01:02.2]} 32... c4 {[%clk 0:00:36.2]} 33. Kf3 {[%clk 0:00:58.5]}
33... Kf7 {[%clk 0:00:36.4]} 34. h4 {[%clk 0:00:58.4]} 34... Ke6 {[%clk
0:00:36.7]} 35. h5 {[%clk 0:00:58.2]} 35... Ra6 {[%clk 0:00:36.4]} 36. Ra1
{[%clk 0:00:56.7]} 36... Rb2 {[%clk 0:00:36.4]} 37. Ra3 {[%clk 0:00:50.8]} 37...
Nb5 {[%clk 0:00:31.2]} 38. Ra1 {[%clk 0:00:51]} 38... Nxc3 {[%clk 0:00:31]} 39.
Nxc4 {[%clk 0:00:50.9]} 39... Rb4 {[%clk 0:00:29.6]} 0-1

[Event "Early-Titled-Tuesday-Blitz-April-23-2024"]
[Site "Chess.com"]
[Date "2024.04.23"]
[Round "4"]
[White "RojonR"]
[Black "maciek_92"]
[Result "0-1"]
[WhiteElo "2561"]
[BlackElo "2835"]
[TimeControl "180+1"]
[EndTime "8:38:59 PDT"]
[Termination "maciek_92 won by resignation"]

1. e4 {[%clk 0:03:00.9]} 1... c5 {[%clk 0:02:58.8]} 2. Nf3 {[%clk 0:03:01.1]}
2... e6 {[%clk 0:02:59.5]} 3. d4 {[%clk 0:03:00.3]} 3... cxd4 {[%clk 0:03:00.4]}
4. Nxd4 {[%clk 0:03:00.9]} 4... Nc6 {[%clk 0:03:01.2]} 5. Nc3 {[%clk 0:03:00.5]}
5... a6 {[%clk 0:03:01.9]} 6. Nxc6 {[%clk 0:02:55.2]} 6... bxc6 {[%clk
0:03:02.8]} 7. Bd3 {[%clk 0:02:55.6]} 7... d5 {[%clk 0:03:03.4]} 8. O-O {[%clk
0:02:55.1]} 8... Nf6 {[%clk 0:03:04.2]} 9. Qe2 {[%clk 0:02:53.9]} 9... Ke7
{[%clk 0:03:04.6]} 10. b3 {[%clk 0:02:50.4]} 10... Ke8 {[%clk 0:03:04.4]} 11.
Bb2 {[%clk 0:02:50.3]} 11... Be7 {[%clk 0:03:04.5]} 12. Rad1 {[%clk 0:02:49.7]}
12... Qc7 {[%clk 0:03:04.4]} 13. Ra1 {[%clk 0:02:49.2]} 13... h5 {[%clk
0:03:02.5]} 14. Rad1 {[%clk 0:02:49.5]} 14... Kf8 {[%clk 0:03:01.1]} 15. h3
{[%clk 0:02:41.8]} 15... h4 {[%clk 0:02:56.4]} 16. Nb1 {[%clk 0:02:11]} 16...
Nh5 {[%clk 0:02:47.8]} 17. c4 {[%clk 0:02:05]} 17... dxc4 {[%clk 0:02:33.8]} 18.
Bxc4 {[%clk 0:02:02.5]} 18... Rh6 {[%clk 0:02:34]} 19. Nd2 {[%clk 0:01:52.7]}
19... Nf4 {[%clk 0:02:31.5]} 20. Qe3 {[%clk 0:01:47.9]} 20... Rg6 {[%clk
0:02:31.2]} 21. Kh1 {[%clk 0:01:20.8]} 21... Nxg2 {[%clk 0:02:30.9]} 22. Qf3
{[%clk 0:01:19.2]} 22... Nf4 {[%clk 0:02:18.6]} 23. Rg1 {[%clk 0:01:15.3]} 23...
Rxg1+ {[%clk 0:02:09.9]} 24. Rxg1 {[%clk 0:01:16.2]} 24... e5 {[%clk 0:02:07.3]}
25. Rxg7 {[%clk 0:00:31]} 25... Kxg7 {[%clk 0:02:08.2]} 26. Qxf4 {[%clk
0:00:30.9]} 26... Bf6 {[%clk 0:02:09]} 27. Qh2 {[%clk 0:00:28.2]} 27... Bb7
{[%clk 0:02:03.7]} 28. Nf3 {[%clk 0:00:25.6]} 28... c5 {[%clk 0:02:02.4]} 29.
Bxe5 {[%clk 0:00:06.7]} 29... Bxe5 {[%clk 0:01:52.3]} 30. Nxe5 {[%clk
0:00:06.7]} 30... Bxe4+ {[%clk 0:01:45.7]} 31. f3 {[%clk 0:00:07.1]} 31... Re8
{[%clk 0:01:46]} 32. Qg2+ {[%clk 0:00:03.4]} 32... Bg6 {[%clk 0:01:46.1]} 33. f4
{[%clk 0:00:03]} 33... Qd6 {[%clk 0:01:30.1]} 34. Bxf7 {[%clk 0:00:01.6]} 34...
Rxe5 {[%clk 0:01:30.7]} 35. fxe5 {[%clk 0:00:01.5]} 35... Qd1+ {[%clk
0:01:31.1]} 36. Kh2 {[%clk 0:00:01.6]} 36... Kxf7 {[%clk 0:01:32]} 37. e6+
{[%clk 0:00:01.3]} 37... Kf6 {[%clk 0:01:30.2]} 38. Qb7 {[%clk 0:00:01.9]} 38...
Qd6+ {[%clk 0:01:29.2]} 39. Kg1 {[%clk 0:00:02.1]} 39... Qd4+ {[%clk 0:01:28.7]}
40. Kh2 {[%clk 0:00:02.1]} 40... Qf2+ {[%clk 0:01:26.8]} 41. Kh1 {[%clk
0:00:02.3]} 41... Qe1+ {[%clk 0:01:24.8]} 42. Kh2 {[%clk 0:00:02.1]} 42... Qg3+
{[%clk 0:01:25]} 0-1